Cogmind - Beta 15 @@@ ROGUE MODE // 2025.05.10 @ 22:20:32 Player: Sorus Result: Destroyed by 93-66J(R) with Subdweller Laser Performance ------------- Evolutions (0) 0 Regions Visited (2) 400 Robots Destroyed (24) 120 Value Destroyed (602) 602 Prototype IDs (1) 20 Alien Tech Used (0) 0 Bonus (-35) -35 TOTAL SCORE: 1107 Bonus ------- Friendly Fire -35 Cogmind --------- Core Integrity 0/250 Matter 257/300 Energy 265/265 System Corruption 7% Temperature Cool (6) Movement Core (200) Ox3 Location -10/Subcaves Parts ------- > --- POWER (1) -------- Improved Ion Engine > --- PROPULSION (2) --- (None) > --- UTILITY (2) ------ Power Shielding > --- WEAPON (2) ------- Improved Medium Laser > --- INVENTORY (5) ---- Ion Engine Light Ion Engine High-capacity Battery (250) Large Matter Pod (90) Grenade Launcher Peak State ------------ > --- POWER ------------ Ion Engine > --- PROPULSION ------- Hover Unit Hover Unit > --- UTILITY ---------- Structural Scanner Power Shielding > --- WEAPON ----------- Improved Medium Laser Improved Medium Laser > --- INVENTORY -------- Light Ion Engine Large Matter Pod EM Pulse Gun Assault Rifle Grenade Launcher [Rating: 11] Favorites ----------- Power Ion Engine Engine Ion Engine Propulsion Aluminum Leg Leg Aluminum Leg Hover Unit Hover Unit Utility Heat Sink Device Heat Sink Storage Large Matter Pod Protection Power Shielding Weapon Improved Medium Laser Energy Gun Improved Medium Laser Ballistic Gun Assault Rifle Ballistic Cannon Light Cannon Launcher Grenade Launcher Build | -11 -10 -10 ------- Run | Yrd Mat Sub Slots Evolved . | . . . Power . | . . . Propulsion . | . . . Utility . | . . . Weapon . | . . . Parts Attached 32 | 8 23 1 Power 4 | 1 2 1 Engine 4 | 1 2 1 Core . | . . . Reactor . | . . . Propulsion 10 | 2 8 . Treads . | . . . Leg 8 | 2 6 . Wheel . | . . . Hover 2 | . 2 . Flight . | . . . Utility 7 | 1 6 . Device 5 | 1 4 . Storage 1 | . 1 . Processor . | . . . Hackware . | . . . Protection 1 | . 1 . Artifact . | . . . Weapon 11 | 4 7 . Energy Gun 8 | 3 5 . Energy Cannon . | . . . Ballistic Gun 1 | 1 . . Ballistic Cannon 1 | . 1 . Launcher 1 | . 1 . Special Weapon . | . . . Impact Weapon . | . . . Slashing Weapon . | . . . Piercing Weapon . | . . . Special Melee Weapon . | . . . Unidentified Prototypes 1 | . 1 . Parts Lost 9 | . 5 4 Power . | . . . Propulsion 3 | . 1 2 Utility 2 | . 1 1 Weapon 4 | . 3 1 Highest Loss Streak 4 | . 3 4 To Critical Strikes . | . . . Average Backups 4 | 3 4 4 Power . | . . 1 Propulsion . | 1 . . Utility 1 | . 1 2 Weapon 2 | . 2 1 Tool/Special . | . . . Unused Backups 5 | . 3 2 Power 2 | . 1 1 Propulsion 2 | . 2 . Utility 1 | . . 1 Weapon . | . . . Tool/Special . | . . . Average Slot Usage (%) 98 | . 98 99 Engine 13 | . 13 14 Leg 22 | . 22 28 Hover 4 | . 5 . Device 13 | . 13 13 Storage 4 | . 4 . Protection 9 | . 8 14 Energy Gun 19 | . 20 14 Ballistic Gun 4 | . 3 8 Ballistic Cannon 3 | . 3 . Launcher 1 | . . 5 Peak Build Rating 11 | 6 11 10 Average Rating 8 | 3 9 9 On Entrance 5 | . 6 9 Naked Turns . | . . . Heaviest Build 14 | 8 14 14 Greatest Support 20 | 20 20 20 Greatest Overweight (x) 3 | . 2 3 Average Overweight (x) . | . . . Largest Inventory Capacity 5 | 5 5 5 Average Capacity 5 | 5 5 5 Most Carried 5 | 5 5 5 Average Carried 4 | 3 4 4 Final Capacity 5 | 5 5 5 Final Carried 5 | 5 4 5 Class Distribution -------------------- 51% | Scavenger-Mutant 48% | Mutant Dominant Class ---------------- Scavenger-Mutant | -10/Materials Scavenger-Mutant | -10/Subcaves Resources | -11 -10 -10 ----------- Run | Yrd Mat Sub Matter Collected 788 | 289 450 49 Remotely . | . . . Salvage Created 732 | 76 564 92 Parts 49 | 7 35 7 Haulers Intercepted 1 | . 1 . Recyclers Shooed . | . . . Parts Field Recycled . | . . . Retrieved Matter . | . . . Parts Self-Destructed 2 | . . 2 Prevented . | . . . Kills | -11 -10 -10 ------- Run | Yrd Mat Sub Combat Hostiles Destroyed 15 | 1 12 2 Guns 12 | 1 9 2 Cannons 2 | . 2 . AOE 1 | . 1 . Classes Destroyed 8 | 3 4 1 Worker 3 | 1 2 . Builder 1 | . 1 . Tunneler 1 | 1 . . Hauler 1 | . 1 . Watcher 3 | . 3 . Swarmer 1 | . 1 . Grunt 12 | 1 11 . Subdweller 2 | . . 2 Best Kill Streak 4 | 2 4 2 Combat Bots Only 2 | 1 2 2 Max Kills in Single Turn 1 | 1 1 1 Gunslinging . | . . . Exploded 1 | . 1 . Melee . | . . . Uniques/NPCs Destroyed . | . . . Combat | -11 -10 -10 -------- Run | Yrd Mat Sub Hostile Shots Fired 97 | 4 66 27 Missed 30 | . 21 9 Hits 67 | 4 45 18 Projectile 67 | 4 45 18 Critical Strikes 2 | . 1 1 Damage Taken 1274 | 45 820 409 Core 261 | 22 156 83 Absorbed by Shields . | . . . Redirected to Shielding 29 | . 9 20 Core Remaining (%) 91 | 91 . . Volleys Fired 64 | 6 50 8 Largest 2 | 2 2 2 Hottest 115 | 90 115 76 Shots Fired 119 | 12 93 14 Gun 106 | 12 80 14 Cannon 10 | . 10 . Launcher 3 | . 3 . Special . | . . . Kinetic 29 | 3 20 6 Thermal 84 | 6 70 8 Explosive 3 | . 3 . Electromagnetic 3 | 3 . . Robot Hit Streak 10 | 3 10 3 Robot Miss Streak 6 | 1 6 2 Penetration Max . | . . . Secondary Targets 2 | . 1 1 Max Gunslinging Chain 1 | . 1 1 Shots Hit Robots 68 | 6 54 8 Core Hits 39 | 3 29 7 Critical Kills . | . . . Critical Parts Destroyed . | . . . Critical Strikes 6 | . 3 3 Burn 5 | . 2 3 Blast 1 | . 1 . Melee Attacks . | . . . Impact . | . . . Slashing . | . . . Piercing . | . . . Sneak Attacks . | . . . Combat Hostiles . | . . . Follow-up Attacks . | . . . Damage Inflicted 1333 | 85 1068 180 Guns 1017 | 85 752 180 Cannons 123 | . 123 . Explosions 189 | . 189 . Melee . | . . . Ramming 4 | . 4 . Kinetic 278 | 24 195 59 Thermal 847 | 46 680 121 Explosive 189 | . 189 . Electromagnetic 15 | 15 . . Impact . | . . . Slashing . | . . . Piercing . | . . . Highest Corruption 7 | . 7 7 Average Corruption 5 | . 5 7 Corruption Purged . | . . . Corruption Blocked . | . . . Effects 23 | . 19 4 Message Errors 2 | . 2 . Matter Fused 7 | . 6 1 Heat Flow Errors 5 | . 5 . Energy Discharges 2 | . 2 . Data Loss (minor) 2 | . 2 . Data Loss (major) 4 | . 2 2 Weapon Failures 1 | . . 1 Overload Shots . | . . . Overflow Damage . | . . . Projectiles . | . . . Explosions . | . . . Melee . | . . . Knockbacks . | . . . Impact . | . . . Kinetic . | . . . Secondary . | . . . Self-Inflicted Damage 4 | . 4 . Shots . | . . . Rammed . | . . . Targets Rammed . | . . . Kicked . | . . . Crushed . | . . . Highest Temperature 271 | 13 271 1 Average Temperature 56 | 8 59 1 Received Heat Transfer 390 | 24 288 78 Siege Activations . | . . . Martial Activations . | . . . Shielding Activations . | . . . Robots Disrupted . | . . . Combat Hostiles . | . . . Robots Corrupted . | . . . Combat Hostiles . | . . . Parts Fried . | . . . Impact Corruptions . | . . . Robots Melted . | . . . Combat Hostiles . | . . . Parts Melted 3 | . 3 . Heat Transferred 2370 | 112 1777 481 Parts Sabotaged . | . . . Parts Stolen . | . . . Parts Stripped . | . . . Power Chain Reactions . | . . . Alert | -11 -10 -10 ------- Run | Yrd Mat Sub Maximum Alert Level . | . . . Low Security (%) 100 | 100 100 . Level 1 . | . . . Level 2 . | . . . Level 3 . | . . . Level 4 . | . . . Level 5 . | . . . High Security . | . . . Max Security . | . . . Peak Influence 67 | 20 67 . Initial 6 | . 6 . Average 19 | 3 21 . Influence Increases 446 | 30 416 . Destroy 0b10 Robot/C 260 | 20 240 . Destroy 0b10 Robot/NC 45 | 10 35 . Destroy Leader 68 | . 68 . Successful Hack 5 | . 5 . Destroy Structure 8 | . 8 . Lose Combat Pursuer 60 | . 60 . Influence Decreases 446 | 20 374 52 Entered New Map 30 | . 4 26 Time Decay 375 | 20 329 26 Lost Part 41 | . 41 . Squads Dispatched 3 | . 3 . Investigation 2 | . 2 . Extermination . | . . . Reinforcement 1 | . 1 . Assault . | . . . Garrison . | . . . Intercept . | . . . Searches Triggered . | . . . Construction Impeded . | . . . Haulers Reinforced . | . . . Active Scanning Responses . | . . . Cargo Convoy Interrupts . | . . . Stealth | -11 -10 -10 --------- Run | Yrd Mat Sub Distress Signals 1 | . 1 . Communications Jammed . | . . . Distress Signals . | . . . Times Spotted 32 | 1 19 12 Peak Tracking Total 9 | 1 4 9 Tactical Retreats 3 | . 3 . Traps | -11 -10 -10 ------- Run | Yrd Mat Sub Traps Triggered 4 | . 4 . Indirectly . | . . . Trap Hack Attempts . | . . . Triggered . | . . . Disarmed . | . . . Reprogrammed . | . . . Reused . | . . . Traps Extracted . | . . . Installed . | . . . Triggered . | . . . Machines | -11 -10 -10 ---------- Run | Yrd Mat Sub Machines Disabled . | . . . Max in Single Turn . | . . . Machines Repaired . | . . . Machines Dismantled . | . . . Machines Sabotaged . | . . . Overloaded Fab Kills . | . . . Hacking | -11 -10 -10 --------- Run | Yrd Mat Sub Machines Accessed 5 | . 5 . Terminals 4 | . 4 . Fabricators . | . . . Repair Stations . | . . . Recycling Units 1 | . 1 . Scanalyzers . | . . . Garrison Access . | . . . Total Hacks 12 | . 12 . Successful 6 | . 6 . Failed 6 | . 6 . Catastrophic 1 | . 1 . Database Lockouts . | . . . Manual 3 | . 3 . Terminals 9 | . 9 . Fabricators . | . . . Repair Stations . | . . . Recycling Units 3 | . 3 . Scanalyzers . | . . . Garrison Access . | . . . Terminal Hacks 4 | . 4 . Record 2 | . 2 . Emergency Access Points 1 | . 1 . Maintenance Status 1 | . 1 . Fabricator Hacks . | . . . Repair Station Hacks . | . . . Recycling Unit Hacks 2 | . 2 . Report Inventory 1 | . 1 . Retrieve Components 1 | . 1 . Scanalyzer . | . . . Garrison Access Hacks . | . . . Unauthorized Hacks . | . . . Terminals . | . . . Fabricators . | . . . Repair Stations . | . . . Recycling Units . | . . . Scanalyzers . | . . . Garrison Access . | . . . Data Cores Recovered . | . . . Used . | . . . Hacking Detections 3 | . 3 . Full Trace Events 2 | . 2 . Feedback Events . | . . . Feedback Blocked . | . . . Robot Schematics Acquired . | . . . Robots Built . | . . . Authchips . | . . . Time . | . . . Total Robot Build Rating . | . . . Part Schematics Acquired . | . . . Parts Built . | . . . Authchips . | . . . Time . | . . . Total Part Build Rating . | . . . Parts Repaired . | . . . Time . | . . . Parts Recycled . | . . . Recycled Matter . | . . . Retrieved Matter . | . . . Retrieved Components 8 | . 8 . Parts Scanalyzed . | . . . Part Schematics Acquired . | . . . Parts Damaged . | . . . Bothacking | -11 -10 -10 ------------ Run | Yrd Mat Sub Used RIF Installer . | . . . Robots Hacked . | . . . Non-combat . | . . . Combat . | . . . Robot Hacks Applied . | . . . Relay Couplers Released . | . . . Fabnet Peak Effective % . | . . . Robots Rewired . | . . . Allies Hacked . | . . . Hacks Repelled . | . . . Allies | -11 -10 -10 -------- Run | Yrd Mat Sub Total Allies . | . . . Largest Group . | . . . Highest-Rated Group . | . . . Highest-Rated Ally . | . . . Total Orders . | . . . Ally Attacks . | . . . Total Damage . | . . . Kills . | . . . Allies Corrupted . | . . . Allies Melted . | . . . Intel | -11 -10 -10 ------- Run | Yrd Mat Sub Active Infowar (turns) 430 | . 430 . Structural 405 | . 405 . Seismic 25 | . 25 . Robot Analysis Total . | . . . Derelict Logs Recovered . | . . . Drone Launches . | . . . Drone Recoveries . | . . . Exploration | -11 -10 -10 ------------- Run | Yrd Mat Sub Turns Passed 1506 | 154 1208 144 Spaces Moved 1089 | 152 852 85 Core 95 | 94 . 1 Treads . | . . . Legs 756 | 58 614 84 Wheels . | . . . Hover 238 | . 238 . Flight . | . . . Fastest Speed 50 | 50 56 120 Average Speed 106 | 76 110 120 Slowest Speed 200 | 120 190 200 Overloaded Moves . | . . . Propulsion Burnouts . | . . . Robots Hopped . | . . . Potential Cave-ins . | . . . Cave-ins Triggered . | . . . Exploration Rate (%) 35 | 7 94 6 Regions Visited 2 Branch Regions 1 Pre-discovered Areas . | . . . Known Exits Taken . | . . . Unknown Exits Taken 2 | 1 1 . Scrap Searched . | . . . Spaces Dug . | . . . Terrain Destroyed 7 | . 7 . Melee . | . . . Projectile . | . . . AOE 7 | . 7 . Terrain Rammed 1 | . 1 . Walls Destroyed . | . . . Machines Disabled . | . . . Actions | -11 -10 -10 --------- Run | Yrd Mat Sub Total 1312 | 176 1025 111 Wait 85 | . 69 16 Move 1087 | 151 851 85 Hop . | . . . Pick Up 17 | 11 6 . Fast Attach 11 | . 11 . Attach 10 | 6 4 . Detach 3 | . 3 . Swap 18 | 2 14 2 Drop 16 | . 16 . Fire 64 | 6 50 8 Melee . | . . . Ram 1 | . 1 . Kick . | . . . Crush . | . . . Escape Stasis . | . . . Rewire . | . . . Trap . | . . . Miscellaneous . | . . . Route ------- -11/Scrapyard -10/Materials (discovered 5 exits: [*Mat x3] / [*Min] / [*Sub]) -10/Subcaves History --------- Turn | Location | Event 2 | -11/Scrapyard | Met Revision 17 92 | -11/Scrapyard | Discovered new exit (range 8) 155 | -11/Scrapyard | Entered Materials 307 | -10/Materials | Build established: Mutant 395 | -10/Materials | Lost 3 parts (1u2w) 452 | -10/Materials | Discovered new exit (range 16) 464 | -10/Materials | Discovered new exit (range 14) 465 | -10/Materials | Core integrity fell below 50% 628 | -10/Materials | Discovered new exit (range 11) 673 | -10/Materials | Discovered new exit (range 5) 895 | -10/Materials | Discovered new exit (range 4) 1104 | -10/Materials | Build established: Scavenger-Mutant 1363 | -10/Materials | Entered Subcaves 1492 | -10/Subcaves | Ambushed by swarm of Subdwellers 1493 | -10/Subcaves | Core integrity fell below 20% 1496 | -10/Subcaves | Ambushed by Subdwellers from Twisted Machinery 1496 | -10/Subcaves | Ambushed by Subdwellers from Twisted Machinery 1496 | -10/Subcaves | Ambushed by Subdwellers from Twisted Machinery 1496 | -10/Subcaves | Ambushed by Subdwellers from Twisted Machinery 1507 | -10/Subcaves | Destroyed by 93-66J(R) with Subdweller Laser Last Messages --------------- S1-OIG(g): "Sorry we're late! Had another grouchy Sub to deal with. Who's the new fellow?" UP-LHX(R) suffers critical hit (Burn). UP-LHX(R) destroyed. Switching to secondary target: KH-BHC(R). M1-NDL(R) emerges from the Twisted Machinery. System corrupted: Substantial component data lost. S9-VX8(h) destroyed. KH-BHC(R) destroyed. Assault Rifle destroyed. 2D-PPH(R) affixes Scrap Shield Fragment to Scrap Shield. 93-66J(R) suffers critical hit (Burn). Aluminum Leg destroyed. S1-OIG(g) destroyed. F0-F7G(R) affixes Scrap Shield Fragment to Scrap Shield. Subatomizers dissect the Sub. Power Source. Map ----- +----------------------------------------------------+ | ??????????????????????????????????# ##### ###### | | ??????????????????????????????????# ##???## # # ## | | ??????????????????????????????????# #?????# | | ??????????????????????????????????# #?????# | | ??????????????????????????????????# ##???# # ## | | ?????????????????????????#####??### #### # ##### | | ????????????????????????## ### # ###???? | | ???????????????????????## ####?????? | | ???????????????????????# #???????? | | ???????????????????????# ###???????? | | ???????????????????????### "#?????????? | | ?????????????????????????## ### "##?????????? | | ??????????????????????????# #### ###??????????? | | ??????????????????????????## ## #????????????? | | ???????????????????????????## ##" #????????????? | | ???????????????????????????# ## ##???????????? | | ???????????????????????????## ## #???????????? | | ????????????????????????#### ##??????????? | | ????????????????????????# #??????????? | | ????????????????????????## ### ????? | | ????????????????????????## ### #?? ?? | | ???????????????????????## =##?###?? # ?? | | ?????????????????????### g%[#?????? # ??? | | ?????????????????????# g##?????? #? #??? | | ?????????????????????# #?????? #?? ##??? | | ????????????????????## @ #???#??####??? #???? | | ????????????????##### *] ## #????????? ?????? | | ????????????????# &!!R ##??????????????? | | ???????????????# R&*%RR" #??????????????? | | ??????????????# RR%R!*######??????????????? | | ?????????????# %![="##???????????????????? | | ??????????? #????????????????????? | | ??????????? #????????????????????? | | ????????????# ## ????????????????????? | | ????????????## ??###### ???????????????????? | | ?????????????##????????###### ???????????????????? | | ?????????????????????????????##??????????????????? | | ?????????????????????????????????????????????????? | | ?????????????????????????????????????????????????? | | ?????????????????????????????????????????????????? | | ?????????????????????????????????????????????????? | | ?????????????????????????????????????????????????? | | ?????????????????????????????????????????????????? | | ?????????????????????????????????????????????????? | | ?????????????????????????????????????????????????? | | ?????????????????????????????????????????????????? | | ?????????????????????????????????????????????????? | | ?????????????????????????????????????????????????? | | ?????????????????????????????????????????????????? | | ?????????????????????????????????????????????????? | +----------------------------------------------------+ Best States ------------- Heat Dissipation 35 Energy Generation 12 Energy Capacity 265 Matter Stores 450 Matter Capacity 450 Sight Range 16 Terrain Scan Density 10 Power Shielding 33 Evasion (%) 55 Item Schematics ----------------- None Robot Schematics ------------------ None Fabricated ------------ Nothing Repaired ---------- Nothing Alien Tech Used ----------------- None Achievements -------------- None Challenges ------------ None Game ------ Seed RemotePhysicsField Manual? 0 Play Time 00:58:25 Cumulative 0.9 hours Start 2025.05.10 @ 21:10:28 End 2025.05.10 @ 22:20:32 Sessions 1 Manual Loads 0 Difficulty Rogue Special Mode None Game No. 2 Rogue 2 Adventurer 0 Explorer 0 Win Type - Total 0 Types 0/0/0/0/0/0/0/0/0/0 Lore% 0 Gallery% 1 Achievement% 7 Wizard Run 0 Options --------- Layout 1 ASCII 0 Keyboard 1 Movement Numpad Keybinds 0 Fullscreen 2 Font 24/Smallcaps Map View 50x35 Zoom Use 0% Tactical HUD 0 Map Filters NONE Filters NONE Steam 1 RUN: 7ca18e10-a45f-4d4d-9029-5a0a82c893a0